[Event "Titled Tuesday Blitz June 28 Early 2022"]
[White "Bharath Subramaniyam H"]
[Black "Starozhilov, Leonid"]
[WhiteFideId "46634827"]
[BlackFideId "14106752"]
[WhiteElo "2855"]
[BlackElo "2629"]
[Result "1/2-1/2"]
[Round "06"]
[TimeControl "180+1"]
[Date "2022.06.28"]
[WhiteClock "0:00:08"]
[BlackClock "0:00:04"]

1. d4 {[%clk 0:02:59]}  Nf6 {[%clk 0:02:57]} 2. Nf3 {[%clk 0:03:00]}  g6 {[%clk 0:02:55]} 3. Nc3 {[%clk 0:02:58]}  d6 {[%clk 0:02:49]} 4. e4 {[%clk 0:02:57]}  Bg7 {[%clk 0:02:48]} 5. Be2 {[%clk 0:02:58]}  Bg4 {[%clk 0:02:47]} 6. O-O {[%clk 0:02:58]}  O-O {[%clk 0:02:46]} 7. a4 {[%clk 0:02:58]}  Nc6 {[%clk 0:02:39]} 8. d5 {[%clk 0:02:57]}  Bxf3 {[%clk 0:02:38]} 9. Bxf3 {[%clk 0:02:58]}  Ne5 {[%clk 0:02:38]} 10. Be2 {[%clk 0:02:58]}  c6 {[%clk 0:02:38]} 11. Be3 {[%clk 0:02:52]}  a5 {[%clk 0:02:35]} 12. f4 {[%clk 0:02:45]}  Ned7 {[%clk 0:02:35]} 13. Bf3 {[%clk 0:02:45]}  Qc7 {[%clk 0:02:35]} 14. Qd2 {[%clk 0:02:37]}  Rac8 {[%clk 0:02:28]} 15. Rac1 {[%clk 0:02:29]}  Rfe8 {[%clk 0:02:20]} 16. Rfe1 {[%clk 0:02:29]}  e6 {[%clk 0:02:16]} 17. dxe6 {[%clk 0:02:24]}  Rxe6 {[%clk 0:02:15]} 18. g4 {[%clk 0:02:20]}  Rce8 {[%clk 0:01:30]} 19. g5 {[%clk 0:02:16]}  Nxe4 {[%clk 0:01:30]} 20. Nxe4 {[%clk 0:02:15]}  Rxe4 {[%clk 0:01:31]} 21. Bxe4 {[%clk 0:02:16]}  Rxe4 {[%clk 0:01:32]} 22. Bf2 {[%clk 0:02:15]}  Rxa4 {[%clk 0:01:18]} 23. b3 {[%clk 0:02:11]}  Rb4 {[%clk 0:01:17]} 24. Re8+ {[%clk 0:02:10]}  Nf8 {[%clk 0:01:17]} 25. Rce1 {[%clk 0:02:11]}  Qd7 {[%clk 0:01:12]} 26. Kg2 {[%clk 0:01:58]}  d5 {[%clk 0:01:02]} 27. h3 {[%clk 0:01:43]}  h6 {[%clk 0:01:01]} 28. Bc5 {[%clk 0:01:38]}  hxg5 {[%clk 0:00:31]} 29. Bxb4 {[%clk 0:01:35]}  axb4 {[%clk 0:00:32]} 30. fxg5 {[%clk 0:01:12]}  Bc3 {[%clk 0:00:26]} 31. Qf4 {[%clk 0:01:12]}  Bxe1 {[%clk 0:00:22]} 32. Rxe1 {[%clk 0:01:13]}  Ne6 {[%clk 0:00:20]} 33. Qf6 {[%clk 0:01:11]}  Qd6 {[%clk 0:00:17]} 34. Rf1 {[%clk 0:01:09]}  Qd7 {[%clk 0:00:13]} 35. Qe5 {[%clk 0:01:06]}  d4 {[%clk 0:00:12]} 36. Rf3 {[%clk 0:01:00]}  c5 {[%clk 0:00:12]} 37. h4 {[%clk 0:00:59]}  Ng7 {[%clk 0:00:07]} 38. Qb8+ {[%clk 0:00:43]}  Kh7 {[%clk 0:00:07]} 39. Qf4 {[%clk 0:00:43]}  Nf5 {[%clk 0:00:05]} 40. h5 {[%clk 0:00:41]}  Qe6 {[%clk 0:00:03]} 41. hxg6+ {[%clk 0:00:40]}  Kxg6 {[%clk 0:00:03]} 42. Rf2 {[%clk 0:00:34]}  Qd5+ {[%clk 0:00:04]} 43. Kg1 {[%clk 0:00:33]}  Qe6 {[%clk 0:00:04]} 44. Kh2 {[%clk 0:00:29]}  Qd5 {[%clk 0:00:02]} 45. Re2 {[%clk 0:00:27]}  Qd6 {[%clk 0:00:02]} 46. Re5 {[%clk 0:00:25]}  Qd7 {[%clk 0:00:01]} 47. Rxc5 {[%clk 0:00:25]}  d3 {[%clk 0:00:01]} 48. cxd3 {[%clk 0:00:22]}  Qxd3 {[%clk 0:00:02]} 49. Re5 {[%clk 0:00:22]}  Qc2+ {[%clk 0:00:02]} 50. Kg1 {[%clk 0:00:21]}  Qb1+ {[%clk 0:00:02]} 51. Kf2 {[%clk 0:00:22]}  Qc2+ {[%clk 0:00:03]} 52. Kg1 {[%clk 0:00:18]}  Qb1+ {[%clk 0:00:03]} 53. Qf1 {[%clk 0:00:16]}  Qc2 {[%clk 0:00:03]} 54. Qf2 {[%clk 0:00:15]}  Qb1+ {[%clk 0:00:04]} 55. Kh2 {[%clk 0:00:15]}  Qd3 {[%clk 0:00:04]} 56. Kg1 {[%clk 0:00:10]}  Kxg5 {[%clk 0:00:04]} 57. Re8 {[%clk 0:00:09]}  Kg6 {[%clk 0:00:03]} 58. Rg8+ {[%clk 0:00:09]}  Kf6 {[%clk 0:00:04]} 59. Qb6+ {[%clk 0:00:09]}  Qd6 {[%clk 0:00:04]} 60. Qxb7 {[%clk 0:00:08]}  Qd4+ {[%clk 0:00:04]} 61. Kh1 {[%clk 0:00:09]}  Qd1+ {[%clk 0:00:03]} 62. Kh2 {[%clk 0:00:09]}  Qe2+ {[%clk 0:00:03]} 63. Rg2 {[%clk 0:00:10]}  Qh5+ {[%clk 0:00:04]} 64. Kg1 {[%clk 0:00:10]}  Qd1+ {[%clk 0:00:04]} 65. Kf2 {[%clk 0:00:11]}  Qd2+ {[%clk 0:00:04]} 66. Kf3 {[%clk 0:00:08]}  Qe3+ {[%clk 0:00:04]} 67. Kg4 {[%clk 0:00:09]}  Nh6+ {[%clk 0:00:03]} 68. Kh4 {[%clk 0:00:09]}  Nf5+ {[%clk 0:00:04]} 69. Kg4 {[%clk 0:00:09]}  Nh6+ {[%clk 0:00:04]} 70. Kh4 {[%clk 0:00:07]}  Nf5+ {[%clk 0:00:04]} 71. Kg4 {[%clk 0:00:08]} 1/2-1/2


[Site "https://www.chess.com"]

[Event "Titled Tuesday Blitz June 28 Early 2022"]
[White "Boraso, Alessio"]
[Black "Fernandez Hernandez, Gerardo"]
[WhiteFideId "848077"]
[BlackFideId "2207400"]
[WhiteElo "2286"]
[BlackElo "2234"]
[Result "1-0"]
[Round "06"]
[TimeControl "180+1"]
[Date "2022.06.28"]
[WhiteClock "0:01:47"]
[BlackClock "0:01:23"]

1. d4 {[%clk 0:03:00]}  Nf6 {[%clk 0:02:59]} 2. c4 {[%clk 0:03:01]}  c5 {[%clk 0:02:59]} 3. d5 {[%clk 0:03:01]}  b5 {[%clk 0:02:59]} 4. cxb5 {[%clk 0:03:01]}  a6 {[%clk 0:02:59]} 5. f3 {[%clk 0:03:01]}  e6 {[%clk 0:02:56]} 6. e4 {[%clk 0:02:56]}  exd5 {[%clk 0:02:56]} 7. e5 {[%clk 0:02:51]}  Nh5 {[%clk 0:02:42]} 8. Nh3 {[%clk 0:02:26]}  Bb7 {[%clk 0:02:02]} 9. g4 {[%clk 0:02:01]}  Qh4+ {[%clk 0:01:56]} 10. Nf2 {[%clk 0:02:00]}  Nc6 {[%clk 0:01:31]} 11. bxc6 {[%clk 0:01:54]}  Bxc6 {[%clk 0:01:23]} 12. gxh5 {[%clk 0:01:47]} 1-0


[Site "https://www.chess.com"]

[Event "Titled Tuesday Blitz June 28 Early 2022"]
[White "Bortnyk, Olexandr"]
[Black "Jubin Jimmy"]
[WhiteFideId "14120828"]
[BlackFideId "46686614"]
[WhiteElo "2989"]
[BlackElo "2861"]
[Result "1-0"]
[Round "06"]
[TimeControl "180+1"]
[Date "2022.06.28"]
[WhiteClock "0:02:02"]
[BlackClock "0:01:20"]

1. d4 {[%clk 0:03:00]}  Nf6 {[%clk 0:02:59]} 2. Nc3 {[%clk 0:03:00]}  d5 {[%clk 0:02:58]} 3. Bf4 {[%clk 0:03:01]}  e6 {[%clk 0:02:56]} 4. Nb5 {[%clk 0:03:01]}  Na6 {[%clk 0:02:55]} 5. e3 {[%clk 0:03:01]}  Be7 {[%clk 0:02:55]} 6. Nf3 {[%clk 0:03:02]}  O-O {[%clk 0:02:55]} 7. Ne5 {[%clk 0:03:03]}  c5 {[%clk 0:02:55]} 8. c3 {[%clk 0:03:00]}  Bd7 {[%clk 0:02:52]} 9. Nxd7 {[%clk 0:02:57]}  Qxd7 {[%clk 0:02:52]} 10. a4 {[%clk 0:02:58]}  Nb8 {[%clk 0:02:51]} 11. Nc7 {[%clk 0:02:57]}  Nc6 {[%clk 0:02:47]} 12. Nxa8 {[%clk 0:02:58]}  Rxa8 {[%clk 0:02:48]} 13. Bd3 {[%clk 0:02:58]}  Bd6 {[%clk 0:02:48]} 14. Bxd6 {[%clk 0:02:57]}  Qxd6 {[%clk 0:02:49]} 15. O-O {[%clk 0:02:57]}  e5 {[%clk 0:02:49]} 16. dxe5 {[%clk 0:02:56]}  Nxe5 {[%clk 0:02:50]} 17. Be2 {[%clk 0:02:56]}  g6 {[%clk 0:02:41]} 18. h3 {[%clk 0:02:55]}  h5 {[%clk 0:02:41]} 19. Qb3 {[%clk 0:02:54]}  Qc7 {[%clk 0:02:38]} 20. Rfd1 {[%clk 0:02:53]}  Rd8 {[%clk 0:02:38]} 21. Rd2 {[%clk 0:02:50]}  Kg7 {[%clk 0:02:34]} 22. Rad1 {[%clk 0:02:50]}  g5 {[%clk 0:02:33]} 23. Rxd5 {[%clk 0:02:43]}  Nxd5 {[%clk 0:02:15]} 24. Rxd5 {[%clk 0:02:43]}  Rxd5 {[%clk 0:02:08]} 25. Qxd5 {[%clk 0:02:44]}  h4 {[%clk 0:02:05]} 26. Bh5 {[%clk 0:02:22]}  Qe7 {[%clk 0:02:00]} 27. Qe4 {[%clk 0:02:12]}  Nc6 {[%clk 0:01:33]} 28. Qxe7 {[%clk 0:02:09]}  Nxe7 {[%clk 0:01:34]} 29. Kf1 {[%clk 0:02:06]}  Kf6 {[%clk 0:01:32]} 30. Ke2 {[%clk 0:02:07]}  Ke6 {[%clk 0:01:32]} 31. Kd3 {[%clk 0:02:07]}  b6 {[%clk 0:01:27]} 32. Kc4 {[%clk 0:02:06]}  Nc8 {[%clk 0:01:26]} 33. Kb5 {[%clk 0:02:03]}  Nd6+ {[%clk 0:01:25]} 34. Ka6 {[%clk 0:02:03]}  Nc4 {[%clk 0:01:21]} 35. b3 {[%clk 0:02:01]}  Nd2 {[%clk 0:01:20]} 36. Kxa7 {[%clk 0:02:01]}  Nxb3 {[%clk 0:01:20]} 37. Kxb6 {[%clk 0:02:02]} 1-0


[Site "https://www.chess.com"]

[Event "Titled Tuesday Blitz June 28 Early 2022"]
[White "Buscar, Michael"]
[Black "Balint, Vilmos"]
[WhiteFideId "2603616"]
[BlackFideId "718050"]
[WhiteElo "2010"]
[BlackElo "2059"]
[Result "1-0"]
[Round "06"]
[TimeControl "180+1"]
[Date "2022.06.28"]
[WhiteClock "0:00:43"]
[BlackClock "0:01:21"]

1. Nf3 {[%clk 0:02:53]}  Nf6 {[%clk 0:02:59]} 2. b4 {[%clk 0:02:53]}  d5 {[%clk 0:02:59]} 3. a3 {[%clk 0:02:54]}  e6 {[%clk 0:02:59]} 4. Bb2 {[%clk 0:02:54]}  Be7 {[%clk 0:03:00]} 5. e3 {[%clk 0:02:54]}  O-O {[%clk 0:03:00]} 6. c4 {[%clk 0:02:55]}  c5 {[%clk 0:02:58]} 7. cxd5 {[%clk 0:02:55]}  cxb4 {[%clk 0:02:56]} 8. dxe6 {[%clk 0:02:52]}  Bxe6 {[%clk 0:02:56]} 9. Be2 {[%clk 0:02:49]}  Nc6 {[%clk 0:02:52]} 10. O-O {[%clk 0:02:47]}  b3 {[%clk 0:02:51]} 11. Nc3 {[%clk 0:02:41]}  a5 {[%clk 0:02:51]} 12. a4 {[%clk 0:02:40]}  Nb4 {[%clk 0:02:50]} 13. d4 {[%clk 0:02:33]}  h6 {[%clk 0:02:46]} 14. Ne5 {[%clk 0:02:32]}  Rc8 {[%clk 0:02:45]} 15. Rc1 {[%clk 0:02:18]}  Na2 {[%clk 0:02:38]} 16. Nxa2 {[%clk 0:01:59]}  bxa2 {[%clk 0:02:39]} 17. Nc4 {[%clk 0:01:52]}  Nd5 {[%clk 0:02:25]} 18. e4 {[%clk 0:01:47]}  Nb4 {[%clk 0:02:14]} 19. d5 {[%clk 0:01:47]}  Bd7 {[%clk 0:02:14]} 20. Qd4 {[%clk 0:01:46]}  Bf6 {[%clk 0:01:57]} 21. e5 {[%clk 0:01:46]}  Bg5 {[%clk 0:01:57]} 22. f4 {[%clk 0:01:46]}  Bh4 {[%clk 0:01:54]} 23. g3 {[%clk 0:01:46]}  Be7 {[%clk 0:01:54]} 24. d6 {[%clk 0:01:46]}  Be6 {[%clk 0:01:47]} 25. dxe7 {[%clk 0:01:37]}  Qxe7 {[%clk 0:01:48]} 26. Nd6 {[%clk 0:01:32]}  Rc2 {[%clk 0:01:35]} 27. Rxc2 {[%clk 0:01:15]}  Nxc2 {[%clk 0:01:35]} 28. Qe4 {[%clk 0:01:15]}  Nb4 {[%clk 0:01:34]} 29. Ba3 {[%clk 0:01:06]}  f5 {[%clk 0:01:32]} 30. Qxb7 {[%clk 0:00:51]}  Qxb7 {[%clk 0:01:29]} 31. Nxb7 {[%clk 0:00:51]}  Nc2 {[%clk 0:01:27]} 32. Bxf8 {[%clk 0:00:49]}  Kxf8 {[%clk 0:01:26]} 33. Nxa5 {[%clk 0:00:48]}  a1=Q {[%clk 0:01:26]} 34. Rxa1 {[%clk 0:00:48]}  Nxa1 {[%clk 0:01:27]} 35. Nc6 {[%clk 0:00:45]}  Bd5 {[%clk 0:01:25]} 36. Nd4 {[%clk 0:00:44]}  g6 {[%clk 0:01:21]} 37. a5 {[%clk 0:00:43]} 1-0


[Site "https://www.chess.com"]

[Event "Titled Tuesday Blitz June 28 Early 2022"]
[White "Cherniaiev, Tykhon"]
[Black "Sadhwani, Raunak"]
[WhiteFideId "14182360"]
[BlackFideId "35093487"]
[WhiteElo "2769"]
[BlackElo "2966"]
[Result "0-1"]
[Round "06"]
[TimeControl "180+1"]
[Date "2022.06.28"]
[WhiteClock "0:00:39"]
[BlackClock "0:01:15"]

1. Nf3 {[%clk 0:03:00]}  d5 {[%clk 0:02:59]} 2. d4 {[%clk 0:02:59]}  Nf6 {[%clk 0:02:56]} 3. c4 {[%clk 0:02:59]}  e6 {[%clk 0:02:57]} 4. g3 {[%clk 0:02:59]}  g6 {[%clk 0:02:53]} 5. Bg2 {[%clk 0:02:58]}  Bg7 {[%clk 0:02:54]} 6. O-O {[%clk 0:02:58]}  O-O {[%clk 0:02:54]} 7. Qc2 {[%clk 0:02:59]}  c6 {[%clk 0:02:55]} 8. Nbd2 {[%clk 0:02:59]}  b6 {[%clk 0:02:50]} 9. e4 {[%clk 0:02:59]}  Ba6 {[%clk 0:02:48]} 10. b3 {[%clk 0:02:57]}  dxc4 {[%clk 0:02:41]} 11. Nxc4 {[%clk 0:02:51]}  Nbd7 {[%clk 0:02:41]} 12. Rd1 {[%clk 0:02:49]}  Qc7 {[%clk 0:02:32]} 13. Bf4 {[%clk 0:02:48]}  Qd8 {[%clk 0:02:32]} 14. Bc1 {[%clk 0:02:47]}  Qe7 {[%clk 0:02:27]} 15. Nce5 {[%clk 0:02:29]}  Rac8 {[%clk 0:02:05]} 16. Nxc6 {[%clk 0:01:41]}  Qd6 {[%clk 0:02:04]} 17. Nfe5 {[%clk 0:01:42]}  Nxe5 {[%clk 0:01:36]} 18. dxe5 {[%clk 0:01:41]}  Rxc6 {[%clk 0:01:37]} 19. Rxd6 {[%clk 0:01:10]}  Rxc2 {[%clk 0:01:36]} 20. exf6 {[%clk 0:01:11]}  Bxf6 {[%clk 0:01:37]} 21. Rb1 {[%clk 0:01:11]}  Rfc8 {[%clk 0:01:33]} 22. Bh6 {[%clk 0:01:05]}  Bg7 {[%clk 0:01:23]} 23. Bxg7 {[%clk 0:00:58]}  Kxg7 {[%clk 0:01:23]} 24. Rd7 {[%clk 0:00:49]}  Bb5 {[%clk 0:01:17]} 25. Rdd1 {[%clk 0:00:38]}  Rxa2 {[%clk 0:01:16]} 26. Rbc1 {[%clk 0:00:38]}  Rxc1 {[%clk 0:01:15]} 27. Rxc1 {[%clk 0:00:39]}  Rb2 {[%clk 0:01:16]} 28. e5 {[%clk 0:00:39]}  Rxb3 {[%clk 0:01:14]} 29. Rc7 {[%clk 0:00:40]}  Rb1+ {[%clk 0:01:14]} 30. Bf1 {[%clk 0:00:39]}  Bxf1 {[%clk 0:01:13]} 31. h4 {[%clk 0:00:38]}  Bc4+ {[%clk 0:01:12]} 32. Kh2 {[%clk 0:00:38]}  Bd5 {[%clk 0:01:13]} 33. g4 {[%clk 0:00:38]}  a5 {[%clk 0:01:12]} 34. f4 {[%clk 0:00:38]}  a4 {[%clk 0:01:13]} 35. Kg3 {[%clk 0:00:38]}  a3 {[%clk 0:01:13]} 36. h5 {[%clk 0:00:39]}  gxh5 {[%clk 0:01:13]} 37. gxh5 {[%clk 0:00:36]}  a2 {[%clk 0:01:13]} 38. Kh4 {[%clk 0:00:37]}  Rh1+ {[%clk 0:01:12]} 39. Kg5 {[%clk 0:00:38]}  h6+ {[%clk 0:01:13]} 40. Kg4 {[%clk 0:00:38]}  a1=Q {[%clk 0:01:13]} 41. f5 {[%clk 0:00:38]}  Qg1+ {[%clk 0:01:13]} 42. Kf4 {[%clk 0:00:39]}  Qf2+ {[%clk 0:01:14]} 43. Kg4 {[%clk 0:00:39]}  Rh4# {[%clk 0:01:15]} 0-1


[Site "https://www.chess.com"]

[Event "Titled Tuesday Blitz June 28 Early 2022"]
[White "Coto Mederos, Michel"]
[Black "Carrasco Miranda, Andres"]
[WhiteFideId "3508528"]
[BlackFideId "3405990"]
[WhiteElo "2427"]
[BlackElo "2177"]
[Result "1-0"]
[Round "06"]
[TimeControl "180+1"]
[Date "2022.06.28"]
[WhiteClock "0:00:20"]
[BlackClock "0:00:25"]

1. c4 {[%clk 0:02:58]}  Nf6 {[%clk 0:02:58]} 2. Nc3 {[%clk 0:02:58]}  g6 {[%clk 0:02:56]} 3. g3 {[%clk 0:02:57]}  Bg7 {[%clk 0:02:55]} 4. Bg2 {[%clk 0:02:58]}  c5 {[%clk 0:02:53]} 5. e3 {[%clk 0:02:52]}  O-O {[%clk 0:02:48]} 6. Nge2 {[%clk 0:02:53]}  Nc6 {[%clk 0:02:41]} 7. O-O {[%clk 0:02:52]}  d6 {[%clk 0:02:41]} 8. b3 {[%clk 0:02:48]}  Bg4 {[%clk 0:02:40]} 9. h3 {[%clk 0:02:47]}  Bd7 {[%clk 0:02:40]} 10. Bb2 {[%clk 0:02:47]}  a6 {[%clk 0:02:39]} 11. d4 {[%clk 0:02:45]}  Rb8 {[%clk 0:02:38]} 12. dxc5 {[%clk 0:02:41]}  dxc5 {[%clk 0:02:37]} 13. Rc1 {[%clk 0:02:22]}  Bf5 {[%clk 0:02:30]} 14. e4 {[%clk 0:02:12]}  Be6 {[%clk 0:02:28]} 15. Rc2 {[%clk 0:01:56]}  Qc8 {[%clk 0:02:27]} 16. Kh2 {[%clk 0:01:49]}  Rd8 {[%clk 0:02:26]} 17. Nd5 {[%clk 0:01:48]}  b5 {[%clk 0:02:08]} 18. cxb5 {[%clk 0:01:35]}  Rxb5 {[%clk 0:02:07]} 19. Qc1 {[%clk 0:01:28]}  Nxd5 {[%clk 0:01:17]} 20. exd5 {[%clk 0:01:08]}  Bxd5 {[%clk 0:01:16]} 21. Bxd5 {[%clk 0:01:07]}  Rxd5 {[%clk 0:01:17]} 22. Bxg7 {[%clk 0:01:06]}  Kxg7 {[%clk 0:01:15]} 23. Nc3 {[%clk 0:01:05]}  Rh5 {[%clk 0:01:15]} 24. h4 {[%clk 0:00:55]}  Rb4 {[%clk 0:01:11]} 25. f4 {[%clk 0:00:41]}  Nd4 {[%clk 0:01:03]} 26. Rd2 {[%clk 0:00:36]}  Qg4 {[%clk 0:01:00]} 27. Qd1 {[%clk 0:00:35]}  Qxd1 {[%clk 0:00:51]} 28. Rdxd1 {[%clk 0:00:32]}  e5 {[%clk 0:00:44]} 29. g4 {[%clk 0:00:25]}  Rxh4+ {[%clk 0:00:43]} 30. Kg3 {[%clk 0:00:25]}  Rh6 {[%clk 0:00:34]} 31. fxe5 {[%clk 0:00:25]}  Nc2 {[%clk 0:00:29]} 32. Rd7 {[%clk 0:00:21]}  Ne3 {[%clk 0:00:28]} 33. Rdxf7+ {[%clk 0:00:18]}  Kg8 {[%clk 0:00:24]} 34. Rf8+ {[%clk 0:00:19]}  Kg7 {[%clk 0:00:25]} 35. R1f7# {[%clk 0:00:20]} 1-0


[Site "https://www.chess.com"]

[Event "Titled Tuesday Blitz June 28 Early 2022"]
[White "Cremisi, Daniel"]
[Black "Ziatdinov, Raset"]
[WhiteFideId "2089882"]
[BlackFideId "2015323"]
[WhiteElo "2172"]
[BlackElo "2220"]
[Result "1-0"]
[Round "06"]
[TimeControl "180+1"]
[Date "2022.06.28"]
[WhiteClock "0:02:38"]
[BlackClock "0:02:19"]

1. d4 {[%clk 0:03:00]}  Nf6 {[%clk 0:02:58]} 2. c4 {[%clk 0:03:01]}  e6 {[%clk 0:02:58]} 3. Nf3 {[%clk 0:02:59]}  b6 {[%clk 0:02:57]} 4. g3 {[%clk 0:02:59]}  Ba6 {[%clk 0:02:56]} 5. Qc2 {[%clk 0:02:58]}  Bb4+ {[%clk 0:02:55]} 6. Bd2 {[%clk 0:02:58]}  d5 {[%clk 0:02:55]} 7. Bxb4 {[%clk 0:02:57]}  dxc4 {[%clk 0:02:50]} 8. Bg2 {[%clk 0:02:56]}  Nd5 {[%clk 0:02:47]} 9. Ba3 {[%clk 0:02:55]}  c6 {[%clk 0:02:43]} 10. Ne5 {[%clk 0:02:53]}  b5 {[%clk 0:02:42]} 11. O-O {[%clk 0:02:50]}  Nd7 {[%clk 0:02:30]} 12. Nxc6 {[%clk 0:02:46]}  Qc7 {[%clk 0:02:30]} 13. Nb4 {[%clk 0:02:46]}  Nxb4 {[%clk 0:02:31]} 14. Bxb4 {[%clk 0:02:45]}  Rd8 {[%clk 0:02:30]} 15. Nc3 {[%clk 0:02:44]}  Nb6 {[%clk 0:02:28]} 16. Rfd1 {[%clk 0:02:44]}  Nd5 {[%clk 0:02:26]} 17. Nxd5 {[%clk 0:02:42]}  exd5 {[%clk 0:02:27]} 18. e4 {[%clk 0:02:41]}  dxe4 {[%clk 0:02:21]} 19. Qxe4+ {[%clk 0:02:40]}  Kd7 {[%clk 0:02:20]} 20. Bh3+ {[%clk 0:02:38]}  f5 {[%clk 0:02:19]} 21. Bxf5# {[%clk 0:02:38]} 1-0


[Site "https://www.chess.com"]

[Event "Titled Tuesday Blitz June 28 Early 2022"]
[White "D`Arruda, Ricardo D."]
[Black "Martinez, Shawn"]
[WhiteFideId "100692"]
[BlackFideId "2039770"]
[WhiteElo "2483"]
[BlackElo "2174"]
[Result "0-1"]
[Round "06"]
[TimeControl "180+1"]
[Date "2022.06.28"]
[WhiteClock "0:00:23"]
[BlackClock "0:00:30"]

1. d4 {[%clk 0:02:52]}  g6 {[%clk 0:02:56]} 2. e4 {[%clk 0:02:51]}  Bg7 {[%clk 0:02:57]} 3. Nf3 {[%clk 0:02:44]}  b6 {[%clk 0:02:56]} 4. Nc3 {[%clk 0:02:44]}  a6 {[%clk 0:02:52]} 5. Bc4 {[%clk 0:02:42]}  Bb7 {[%clk 0:02:50]} 6. a4 {[%clk 0:02:38]}  e6 {[%clk 0:02:50]} 7. O-O {[%clk 0:02:37]}  Ne7 {[%clk 0:02:49]} 8. Qe2 {[%clk 0:02:37]}  h6 {[%clk 0:02:49]} 9. d5 {[%clk 0:02:34]}  O-O {[%clk 0:02:45]} 10. Bd2 {[%clk 0:02:31]}  exd5 {[%clk 0:02:40]} 11. exd5 {[%clk 0:02:26]}  b5 {[%clk 0:02:40]} 12. axb5 {[%clk 0:02:24]}  axb5 {[%clk 0:02:40]} 13. Rxa8 {[%clk 0:02:24]}  Bxa8 {[%clk 0:02:41]} 14. d6 {[%clk 0:02:16]}  Nf5 {[%clk 0:02:34]} 15. Nxb5 {[%clk 0:02:11]}  cxd6 {[%clk 0:02:20]} 16. Bc3 {[%clk 0:02:05]}  Nc6 {[%clk 0:02:08]} 17. Bxg7 {[%clk 0:02:02]}  Kxg7 {[%clk 0:02:04]} 18. Rd1 {[%clk 0:02:01]}  Qf6 {[%clk 0:02:01]} 19. c3 {[%clk 0:02:00]}  Ne5 {[%clk 0:01:55]} 20. Nxe5 {[%clk 0:01:55]}  dxe5 {[%clk 0:01:52]} 21. Rxd7 {[%clk 0:01:55]}  Nh4 {[%clk 0:01:51]} 22. Bd5 {[%clk 0:01:41]}  Qg5 {[%clk 0:01:36]} 23. Bxa8 {[%clk 0:01:31]}  Rxa8 {[%clk 0:01:34]} 24. g3 {[%clk 0:01:26]}  e4 {[%clk 0:01:10]} 25. Rd1 {[%clk 0:01:10]}  Nf3+ {[%clk 0:01:04]} 26. Kg2 {[%clk 0:01:11]}  Nh4+ {[%clk 0:01:03]} 27. Kh1 {[%clk 0:01:06]}  Nf3 {[%clk 0:01:00]} 28. Qxe4 {[%clk 0:01:06]}  Qh5 {[%clk 0:01:00]} 29. h4 {[%clk 0:00:49]}  Ra2 {[%clk 0:00:41]} 30. Qe2 {[%clk 0:00:36]}  Qg4 {[%clk 0:00:37]} 31. Kg2 {[%clk 0:00:28]}  Nxh4+ {[%clk 0:00:36]} 32. Kf1 {[%clk 0:00:28]}  Qh3+ {[%clk 0:00:34]} 33. Ke1 {[%clk 0:00:28]}  Ng2+ {[%clk 0:00:33]} 34. Kd2 {[%clk 0:00:25]}  Rxb2+ {[%clk 0:00:33]} 35. Kd3 {[%clk 0:00:24]}  Rxe2 {[%clk 0:00:32]} 36. Kxe2 {[%clk 0:00:24]}  Qh5+ {[%clk 0:00:31]} 37. Kd2 {[%clk 0:00:23]}  Qxb5 {[%clk 0:00:30]} 0-1


[Site "https://www.chess.com"]

[Event "Titled Tuesday Blitz June 28 Early 2022"]
[White "De La Colina, Nicolas"]
[Black "Agibileg, Uurtsaikh"]
[WhiteFideId "30946921"]
[BlackFideId "4901606"]
[WhiteElo "2046"]
[BlackElo "2205"]
[Result "1-0"]
[Round "06"]
[TimeControl "180+1"]
[Date "2022.06.28"]
[WhiteClock "0:00:12"]
[BlackClock "0:00:15"]

1. e4 {[%clk 0:03:00]}  c5 {[%clk 0:02:55]} 2. c3 {[%clk 0:03:00]}  d5 {[%clk 0:02:54]} 3. exd5 {[%clk 0:03:00]}  Qxd5 {[%clk 0:02:55]} 4. Nf3 {[%clk 0:03:01]}  Nf6 {[%clk 0:02:55]} 5. d4 {[%clk 0:03:01]}  e6 {[%clk 0:02:55]} 6. Na3 {[%clk 0:02:58]}  Be7 {[%clk 0:02:51]} 7. Nb5 {[%clk 0:02:51]}  Na6 {[%clk 0:02:50]} 8. Be3 {[%clk 0:02:30]}  cxd4 {[%clk 0:02:43]} 9. Nbxd4 {[%clk 0:02:30]}  O-O {[%clk 0:02:42]} 10. Be2 {[%clk 0:02:26]}  Ng4 {[%clk 0:02:41]} 11. Bc1 {[%clk 0:02:17]}  Nc5 {[%clk 0:02:39]} 12. O-O {[%clk 0:02:14]}  a6 {[%clk 0:02:38]} 13. h3 {[%clk 0:02:12]}  Nf6 {[%clk 0:02:37]} 14. c4 {[%clk 0:02:11]}  Qd8 {[%clk 0:02:29]} 15. b3 {[%clk 0:02:08]}  Nce4 {[%clk 0:02:25]} 16. Bb2 {[%clk 0:02:06]}  Qa5 {[%clk 0:02:23]} 17. Qc2 {[%clk 0:02:04]}  Ba3 {[%clk 0:02:22]} 18. Bd3 {[%clk 0:01:54]}  Bxb2 {[%clk 0:02:22]} 19. Qxb2 {[%clk 0:01:55]}  Nc5 {[%clk 0:02:15]} 20. Bc2 {[%clk 0:01:51]}  Ncd7 {[%clk 0:02:03]} 21. Rad1 {[%clk 0:01:48]}  Ne5 {[%clk 0:01:54]} 22. Nxe5 {[%clk 0:01:43]}  Qxe5 {[%clk 0:01:55]} 23. Rfe1 {[%clk 0:01:43]}  Qc5 {[%clk 0:01:52]} 24. Qc3 {[%clk 0:01:39]}  b5 {[%clk 0:01:50]} 25. Bd3 {[%clk 0:01:25]}  bxc4 {[%clk 0:01:42]} 26. Qxc4 {[%clk 0:01:26]}  Qxc4 {[%clk 0:01:42]} 27. Bxc4 {[%clk 0:01:27]}  Bb7 {[%clk 0:01:42]} 28. Ne2 {[%clk 0:01:09]}  Rfd8 {[%clk 0:01:41]} 29. Nc3 {[%clk 0:01:07]}  Rac8 {[%clk 0:01:26]} 30. f3 {[%clk 0:01:07]}  Ra8 {[%clk 0:01:27]} 31. Kf2 {[%clk 0:01:06]}  Kf8 {[%clk 0:01:16]} 32. Ke3 {[%clk 0:01:05]}  Ke7 {[%clk 0:01:15]} 33. Na4 {[%clk 0:01:03]}  Rac8 {[%clk 0:01:06]} 34. Rxd8 {[%clk 0:00:58]}  Kxd8 {[%clk 0:01:03]} 35. Rd1+ {[%clk 0:00:54]}  Ke7 {[%clk 0:00:59]} 36. Nc3 {[%clk 0:00:38]}  h5 {[%clk 0:00:53]} 37. h4 {[%clk 0:00:34]}  Nd7 {[%clk 0:00:47]} 38. Na4 {[%clk 0:00:18]}  Ne5 {[%clk 0:00:26]} 39. Rc1 {[%clk 0:00:18]}  Nxc4+ {[%clk 0:00:18]} 40. Rxc4 {[%clk 0:00:19]}  Rxc4 {[%clk 0:00:18]} 41. bxc4 {[%clk 0:00:20]}  Kd6 {[%clk 0:00:18]} 42. Kd4 {[%clk 0:00:18]}  e5+ {[%clk 0:00:18]} 43. Kd3 {[%clk 0:00:18]}  f6 {[%clk 0:00:18]} 44. a3 {[%clk 0:00:17]}  g5 {[%clk 0:00:18]} 45. hxg5 {[%clk 0:00:15]}  fxg5 {[%clk 0:00:19]} 46. Nc3 {[%clk 0:00:15]}  g4 {[%clk 0:00:17]} 47. Ne4+ {[%clk 0:00:14]}  Ke7 {[%clk 0:00:15]} 48. fxg4 {[%clk 0:00:12]} 1-0


[Site "https://www.chess.com"]